bitfinex/quotes_BTCUSD_20250523
["timestamp","ask_amount","ask_price","bid_price","bid_amount"]
[1748044090934,0.75843113,106880.0,106870.0,0.00115226]
[1748044091336,0.69405755,106880.0,106870.0,0.00115226]
[1748044091837,0.68762758,106880.0,106870.0,0.00115226]
[1748044092032,0.69462758,106880.0,106870.0,0.00215226]
[1748044092362,0.68862758,106880.0,106870.0,0.00215226]
[1748044095660,0.69862758,106880.0,106870.0,0.00215226]
[1748044095879,0.26627623,106860.0,106850.0,0.25]
[1748044096077,0.35582179,106860.0,106850.0,0.25]
[1748044096928,0.35582179,106860.0,106850.0,0.25]
[1748044097161,0.36282179,106860.0,106850.0,0.252]
[1748044107698,0.35682179,106860.0,106850.0,0.252]
[1748044107902,0.36282179,106860.0,106850.0,0.252]
[1748044108106,0.36282179,106860.0,106850.0,0.53248]
[1748044109207,0.36282179,106860.0,106850.0,0.252]
[1748044112271,0.37282179,106860.0,106850.0,0.252]
[1748044112694,0.71282179,106860.0,106850.0,0.252]
[1748044112893,0.71223839,106860.0,106850.0,0.25]
[1748044113094,0.74077924,106860.0,106850.0,0.251]
[1748044113441,0.74577924,106860.0,106850.0,0.251]
[1748044113648,0.73577924,106860.0,106850.0,0.251]
[1748044114057,0.74577924,106860.0,106850.0,0.251]
[1748044114271,1.02625924,106860.0,106850.0,0.251]
[1748044115050,1.01175839,106860.0,106850.0,0.251]
[1748044115614,1.00575839,106860.0,106850.0,0.251]
[1748044117071,0.78133839,106860.0,106850.0,0.251]
[1748044117279,1.06185839,106860.0,106850.0,0.251]
[1748044117949,0.70523839,106860.0,106850.0,0.251]
[1748044118174,1.00575839,106860.0,106850.0,0.251]
[1748044118406,0.72523839,106860.0,106850.0,0.251]
[1748044118883,0.78133839,106860.0,106850.0,0.251]
[1748044119503,0.79587924,106860.0,106850.0,0.251]
[1748044119708,0.78587924,106860.0,106850.0,0.251]
[1748044121016,1.25898379,106860.0,106850.0,0.1865]
[1748044121245,0.96378075,106860.0,106850.0,0.1865]
[1748044121458,1.2501253,106860.0,106850.0,0.1865]
[1748044121636,1.45116379,106860.0,106850.0,0.1865]
[1748044121846,1.44716379,106860.0,106850.0,0.1855]
[1748044122060,1.43216379,106860.0,106850.0,0.1855]
[1748044122267,1.44016379,106860.0,106850.0,0.1855]
[1748044122472,1.5296853,106860.0,106850.0,0.1855]
[1748044122684,1.5376853,106860.0,106850.0,0.1865]
[1748044123405,1.2511253,106860.0,106850.0,0.1865]
[1748044123650,1.91856379,106860.0,106850.0,0.1865]
[1748044124477,1.16160379,106860.0,106850.0,0.1865]
[1748044124686,1.92856379,106860.0,106850.0,0.1865]
[1748044124907,1.91856379,106860.0,106850.0,0.1865]
[1748044126210,2.01694379,106860.0,106850.0,0.1865]
[1748044126429,2.1064653,106860.0,106850.0,0.1865]
[1748044128595,2.1064653,106860.0,106800.0,0.7704626]
[1748044128596,0.2059726,106810.0,106800.0,0.7704626]
[1748044128824,0.29551816,106810.0,106800.0,0.7704626]
[1748044129245,0.29551816,106810.0,106800.0,0.0135026]
[1748044129881,0.29551816,106810.0,106800.0,0.01400966]
[1748044130710,0.29651816,106810.0,106800.0,0.01500966]
[1748044130928,0.29651816,106810.0,106760.0,0.0111868]
[1748044130929,0.25274744,106790.0,106760.0,0.0111868]
[1748044131157,0.7555827,106760.0,106750.0,0.01602032]
[1748044131437,0.6572027,106760.0,106750.0,0.0247512]
[1748044131638,0.7116575,106760.0,106750.0,0.0247512]
[1748044131855,0.9922575,106760.0,106750.0,0.0247512]
[1748044132060,0.9361575,106760.0,106750.0,0.0247512]
[1748044132268,0.9415741,106760.0,106750.0,0.00987088]
[1748044132486,0.68051495,106760.0,106750.0,0.00114]
[1748044132706,0.9616217,106760.0,106750.0,0.00114]
[1748044133127,0.9566217,106760.0,106750.0,0.00114]
[1748044133333,0.9567017,106760.0,106750.0,0.00114]
[1748044133539,0.20614629,106720.0,106710.0,0.02649785]
[1748044134172,0.20614629,106720.0,106710.0,0.50233785]
[1748044134786,0.20765272,106720.0,106710.0,0.02649785]
[1748044135008,0.20765272,106720.0,106710.0,0.50233785]
[1748044135195,0.20765272,106720.0,106710.0,0.49363696]
[1748044136070,0.20865272,106720.0,106710.0,0.49355227]
[1748044136656,0.20865272,106720.0,106710.0,0.77427227]
[1748044136857,0.20865272,106720.0,106710.0,0.01771227]
[1748044137484,0.20865272,106720.0,106710.0,0.49363227]
[1748044137905,0.29819828,106720.0,106710.0,0.49363227]
[1748044138726,0.28882815,106720.0,106710.0,0.49363227]
[1748044138938,0.29819828,106720.0,106710.0,0.49363227]
[1748044139368,0.29819828,106720.0,106710.0,0.49371227]
[1748044139582,0.29819828,106720.0,106710.0,0.77447227]
[1748044140845,0.20865272,106720.0,106710.0,1.17607227]
[1748044141271,0.20865272,106720.0,106710.0,1.19061312]
[1748044141480,0.02124643,106720.0,106710.0,1.40614948]
[1748044141706,0.02124643,106720.0,106710.0,2.10660504]
[1748044141707,0.00250643,106720.0,106710.0,2.10660504]
[1748044141922,0.00878635,106720.0,106710.0,2.10660504]
[1748044142135,0.02752635,106720.0,106710.0,2.10660522]
[1748044142344,0.21549624,106730.0,106720.0,0.57398767]
[1748044142587,0.20612716,106730.0,106720.0,2.18646871]
[1748044142825,0.19675799,106730.0,106720.0,1.99641271]
[1748044143002,0.19675799,106730.0,106720.0,1.9870424]
[1748044143206,0.19675799,106730.0,106720.0,2.183819]
[1748044143410,0.19675799,106730.0,106720.0,2.28273478]
[1748044143668,0.19675799,106730.0,106720.0,2.08595827]
[1748044143877,0.18738873,106730.0,106720.0,1.87284396]
[1748044144044,0.18838873,106730.0,106720.0,1.37293696]
[1748044144268,0.18838873,106730.0,106720.0,1.41663696]
[1748044144879,0.18938873,106730.0,106720.0,1.41663696]
[1748044145695,0.18938873,106730.0,106720.0,1.41763696]
[1748044145855,0.07275775,106730.0,106720.0,1.41663696]
[1748044146250,0.07475775,106730.0,106720.0,1.41763696]
[1748044146449,0.002,106730.0,106720.0,1.63315313]
[1748044146695,0.02073755,106730.0,106720.0,1.63315313]
[1748044146915,0.20812715,106730.0,106720.0,1.41763696]
[1748044147117,0.002,106730.0,106720.0,1.63315313]
[1748044147324,0.001,106730.0,106720.0,1.63215313]
[1748044147520,0.08300833,106750.0,106740.0,0.27378041]
[1748044147740,0.27972945,106750.0,106740.0,2.32886196]
[1748044147941,0.27972945,106750.0,106740.0,2.21682043]
[1748044148164,0.27972945,106750.0,106740.0,1.30807096]
[1748044148525,0.27972945,106750.0,106740.0,0.75169141]
[1748044148882,0.27972945,106750.0,106740.0,1.22919097]
[1748044149087,0.27972945,106750.0,106740.0,1.23855917]
[1748044149299,0.28072945,106750.0,106740.0,1.23019097]
[1748044149500,0.28272945,106750.0,106740.0,1.23019097]
[1748044149714,0.27336221,106750.0,106740.0,1.22082259]
[1748044149935,0.27336221,106750.0,106740.0,1.23019114]
[1748044150164,0.27336221,106750.0,106740.0,1.23955961]
[1748044150373,0.27336221,106750.0,106740.0,1.24892799]
[1748044150623,0.27336221,106750.0,106740.0,1.23955961]
[1748044150830,0.26399471,106750.0,106740.0,1.04281996]
[1748044151040,0.26399471,106750.0,106740.0,0.4921679]
[1748044151259,0.19035362,106750.0,106740.0,1.2582561]
[1748044151484,0.003,106750.0,106740.0,1.99234859]
[1748044151686,0.95070794,106790.0,106780.0,0.34]
[1748044151889,0.95070794,106790.0,106780.0,1.54132504]
[1748044151890,0.26100794,106790.0,106780.0,1.54132504]
[1748044152096,0.26100794,106790.0,106780.0,1.53196]
[1748044152486,0.26100794,106790.0,106780.0,1.81713604]
[1748044152683,0.26100794,106790.0,106780.0,1.53196]
[1748044152908,0.26100794,106790.0,106780.0,1.53211153]
[1748044153030,0.26100794,106790.0,106780.0,1.71941252]
[1748044153233,0.28073584,106790.0,106780.0,1.99308337]
[1748044153569,0.28073584,106790.0,106780.0,1.79641742]
[1748044153775,0.28065244,106790.0,106780.0,1.79641734]
[1748044153983,0.27128862,106790.0,106780.0,1.78705238]
[1748044154231,0.26528862,106790.0,106780.0,1.78705238]
[1748044154410,0.26528862,106790.0,106780.0,1.70881438]
[1748044154591,0.26528862,106790.0,106780.0,1.71246742]
[1748044154800,0.26528862,106790.0,106780.0,1.66834838]
[1748044155082,0.26528862,106790.0,106780.0,1.54765238]
[1748044155437,0.26528862,106790.0,106780.0,1.25227153]
[1748044155637,0.26528862,106790.0,106780.0,1.50195153]
[1748044155843,0.19764753,106790.0,106780.0,1.50195153]
[1748044156044,0.001,106790.0,106780.0,3.14348458]
[1748044156248,0.0187258,106800.0,106790.0,0.27026698]
[1748044156449,0.01972369,106810.0,106800.0,0.26089558]
[1748044156652,0.001,106810.0,106800.0,2.25437214]
[1748044156868,0.01972352,106810.0,106800.0,2.59437214]
[1748044157083,0.19569274,106830.0,106820.0,0.23895366]
[1748044157295,0.19569274,106830.0,106820.0,2.04775085]
[1748044157430,0.21529435,106830.0,106820.0,1.8656994]
[1748044157642,0.21529487,106830.0,106820.0,2.05293025]
[1748044157852,0.01872089,106830.0,106820.0,2.09037517]
[1748044158075,0.21529478,106830.0,106820.0,2.09279179]
[1748044158294,0.20644144,106830.0,106820.0,2.10215324]
[1748044158500,0.19708095,106830.0,106820.0,1.87506094]
[1748044158699,0.18772038,106830.0,106820.0,1.8656994]
[1748044158897,0.18772038,106830.0,106820.0,0.8363854]
[1748044159104,0.18772038,106830.0,106820.0,1.5929054]
[1748044159768,0.18772038,106830.0,106820.0,1.95235725]
[1748044160083,0.19708087,106830.0,106820.0,1.96171861]
[1748044160294,0.01871808,106840.0,106830.0,0.6028351]
[1748044160493,0.01871738,106850.0,106840.0,0.26281539]
[1748044160695,0.03743458,106850.0,106840.0,3.43330376]
[1748044160814,0.02807261,106860.0,106850.0,0.25343651]
[1748044161011,0.03743047,106860.0,106850.0,0.82702045]
[1748044161223,0.03743047,106860.0,106850.0,0.83637875]
[1748044161467,0.04678842,106860.0,106850.0,2.03885545]
[1748044161683,0.21523461,106860.0,106850.0,1.31017451]
[1748044161887,0.20587675,106860.0,106850.0,1.31953316]
[1748044162097,0.20587675,106860.0,106850.0,1.02409185]
[1748044162242,0.1965188,106860.0,106850.0,1.20863986]
[1748044162451,0.08299781,106870.0,106860.0,0.56041751]
[1748044162656,0.09235427,106870.0,106860.0,2.38982616]
[1748044162859,0.1872098,106880.0,106870.0,0.56710023]
[1748044162860,0.2152782,106880.0,106870.0,0.56710023]
[1748044163099,0.2152782,106880.0,106870.0,0.77456]
[1748044163100,0.19656608,106880.0,106870.0,0.77456]
[1748044163380,0.18715657,106890.0,106880.0,0.52712574]
[1748044163640,0.18717233,106920.0,106900.0,0.54579918]
[1748044163897,0.18717233,106920.0,106910.0,1.09749825]
[1748044164143,0.18732453,106920.0,106910.0,0.34]
[1748044164379,0.18732453,106920.0,106910.0,1.09516]
[1748044165029,0.18732453,106920.0,106910.0,1.81848085]
[1748044165517,0.21509265,106930.0,106920.0,0.19639938]
[1748044165738,0.03740623,106930.0,106920.0,3.81865529]
[1748044165952,0.02805441,106930.0,106920.0,3.82800746]
[1748044166150,0.01870145,106940.0,106930.0,0.56027635]
[1748044166353,0.00935042,106940.0,106930.0,1.20243595]
[1748044166566,0.18702967,106960.0,106950.0,0.34]
[1748044166789,0.01869376,106980.0,106970.0,0.53631601]
[1748044166998,0.20579751,106980.0,106970.0,2.2308976]
[1748044167194,0.19645041,106980.0,106970.0,1.2708004]
[1748044167400,0.19645041,106980.0,106970.0,1.88348455]
[1748044167603,0.19645041,106980.0,106970.0,1.49876]
[1748044168023,0.01884616,106980.0,106970.0,3.49757216]
[1748044168235,0.00015222,106980.0,106970.0,3.65375313]
[1748044168443,0.009345,107000.0,106990.0,0.21497167]
[1748044168648,0.19536016,107010.0,107000.0,0.54560702]
[1748044168649,0.02715105,107010.0,107000.0,0.54560702]
[1748044168888,0.18688366,107020.0,107010.0,0.00934492]
[1748044169109,0.18703582,107020.0,107010.0,0.3101654]
[1748044169417,0.18703582,107020.0,107010.0,0.4568675]
[1748044169562,0.18103582,107020.0,107010.0,0.1321105]
[1748044169769,0.00015216,107020.0,107010.0,1.9880574]
[1748044169980,0.01868503,107030.0,107020.0,0.55491203]
[1748044170183,0.00934169,107040.0,107030.0,0.23877563]
[1748044170384,0.02802567,107040.0,107030.0,3.50049057]
[1748044170597,0.00934064,107050.0,107040.0,0.54553019]
[1748044170798,0.20551082,107050.0,107040.0,0.90378556]
[1748044171005,0.23851082,107050.0,107040.0,0.47424]
[1748044171219,0.19620649,107030.0,107020.0,0.25454085]
[1748044171436,0.19620649,107030.0,107020.0,0.71404]
[1748044171894,0.18689842,107010.0,106990.0,0.47404]
[1748044172112,0.1869408,107000.0,106990.0,0.47419216]
[1748044172319,0.01869131,107000.0,106990.0,0.25873788]
[1748044172527,0.18689842,107010.0,106990.0,0.43521643]
[1748044172727,0.19623924,107020.0,107010.0,0.18689842]
[1748044172932,0.20558302,107020.0,107010.0,1.07721266]
[1748044173163,0.19624316,107010.0,107000.0,0.74353681]
[1748044173341,0.19624316,107010.0,107000.0,2.15682861]
[1748044173544,0.18689842,107010.0,107000.0,0.1118]
[1748044173808,0.2056265,106990.0,106970.0,0.59050408]
[1748044174012,0.2056265,106990.0,106970.0,0.59308237]
[1748044174013,0.20064564,106980.0,106970.0,0.59308237]
[1748044174211,0.20064564,106980.0,106970.0,0.47392]
[1748044174390,0.20568374,106960.0,106950.0,0.30353681]
[1748044174587,0.18698578,106960.0,106950.0,1.19829878]
[1748044174790,0.03739557,106960.0,106950.0,1.69351148]
[1748044175040,0.03639557,106960.0,106950.0,1.68416193]
[1748044175170,0.04574485,106960.0,106950.0,1.4227012]
[1748044175375,0.03639557,106960.0,106950.0,1.7028612]
[1748044175759,0.03639557,106960.0,106950.0,1.61221083]
[1748044175970,0.19629837,106980.0,106970.0,0.19631671]
[1748044176129,0.02804418,106970.0,106960.0,0.22022476]
[1748044176333,0.0093471,106980.0,106970.0,0.21501275]
[1748044176529,0.20564529,106980.0,106970.0,0.884605]
[1748044176936,0.20564529,106980.0,106970.0,1.08092154]
[1748044177174,0.19629819,106980.0,106970.0,0.504445]
[1748044177377,0.18695083,106980.0,106970.0,0.62374541]
[1748044177750,0.18095083,106980.0,106970.0,0.62374541]
[1748044177949,0.18295083,106980.0,106970.0,0.62374541]
[1748044178209,0.18295083,106980.0,106970.0,0.52370541]
[1748044178342,0.18295083,106980.0,106970.0,1.20782]
[1748044178554,0.18295083,106980.0,106970.0,1.193817]
[1748044178754,0.18295083,106980.0,106970.0,1.04229941]
[1748044178975,0.18295083,106980.0,106970.0,0.936279]
[1748044179510,0.02069446,106980.0,106970.0,0.29729148]
[1748044179708,0.0300413,106980.0,106970.0,1.90766165]
[1748044179921,0.0300413,106980.0,106970.0,0.80039765]
[1748044180122,0.0300413,106980.0,106970.0,0.74797665]
[1748044180319,0.20564529,106980.0,106970.0,0.72952191]
[1748044180524,0.19622981,106970.0,106960.0,0.11343561]
[1748044180728,0.20557796,106970.0,106960.0,0.215146]
[1748044180926,0.19633489,106960.0,106950.0,0.00015222]
[1748044181132,0.19633489,106960.0,106950.0,0.70625722]
[1748044181333,0.0093485,106960.0,106950.0,0.92130965]
[1748044181554,0.18693335,106990.0,106980.0,0.2056452]
[1748044181555,0.00934666,106990.0,106980.0,0.2056452]
[1748044181759,0.00934483,107010.0,107000.0,0.20560702]
[1748044181983,0.00934483,107010.0,107000.0,1.82565923]
[1748044181984,0.02803352,107010.0,107000.0,1.82565923]
[1748044182191,0.03737826,107010.0,107000.0,1.84434994]
[1748044182391,0.20558764,107010.0,107000.0,1.38183588]
[1748044182597,0.20558764,107010.0,107000.0,1.40052702]
[1748044182811,0.00934448,107010.0,107000.0,1.40052702]
[1748044183028,0.02803344,107010.0,107000.0,1.4098722]
[1748044183231,0.00934369,107020.0,107010.0,0.21492092]
[1748044183440,0.20572058,107020.0,107010.0,0.224401]
[1748044183654,0.20572058,107020.0,107010.0,0.564401]
[1748044184090,0.01883963,107020.0,107010.0,0.76064425]
[1748044184324,0.01883963,107020.0,107010.0,0.78033312]
[1748044184661,0.00015207,107020.0,107010.0,0.88441953]
[1748044184822,0.00015207,107020.0,107010.0,1.32095634]
[1748044185291,0.00949533,107020.0,107010.0,1.31995634]
[1748044185516,0.18691308,107050.0,107030.0,0.36802873]
[1748044185738,0.20553001,107040.0,107030.0,0.54554957]
[1748044185969,0.20553001,107040.0,107030.0,1.23718]
[1748044186194,0.20549223,107060.0,107050.0,0.21485206]
[1748044186423,0.20564392,107060.0,107050.0,0.62008]
[1748044186859,0.23754392,107060.0,107050.0,0.34]
[1748044187084,0.23743001,107040.0,107030.0,1.21704]
[1748044187293,0.30810882,107060.0,107050.0,0.34]
[1748044187294,0.24601687,107060.0,107050.0,0.34]
[1748044187510,0.00862481,107060.0,107050.0,1.45798405]
[1748044187714,0.00862481,107060.0,107050.0,1.4725249]
[1748044187924,0.02930478,107060.0,107050.0,1.46318409]
[1748044188130,0.20764376,107060.0,107050.0,1.236057]
[1748044188362,0.20564376,107060.0,107050.0,1.43222683]
[1748044188594,0.01883263,107060.0,107050.0,1.25473942]
[1748044188806,0.21498422,107060.0,107050.0,1.101568]
[1748044189021,0.01883236,107060.0,107050.0,1.21499522]
[1748044189436,0.02817239,107060.0,107050.0,1.21499522]
[1748044189698,0.03851277,107060.0,107050.0,1.24395838]
[1748044189978,0.04785323,107060.0,107050.0,1.2090716]
[1748044190218,0.22432451,107060.0,107050.0,1.18177248]
[1748044190452,0.21498439,107060.0,107050.0,1.19211373]
[1748044190713,0.0188328,107060.0,107050.0,1.54145489]
[1748044191008,0.00015213,107060.0,107050.0,2.02327679]
[1748044191240,0.00015213,107060.0,107050.0,2.05587679]
[1748044193233,0.00933933,107070.0,107060.0,0.22937258]
[1748044193435,0.21531867,107070.0,107060.0,2.55681896]
[1748044193647,0.21531867,107070.0,107060.0,3.30019841]
[1748044193850,0.2059796,107070.0,107060.0,1.954734]
[1748044194072,0.2059796,107070.0,107060.0,2.09500068]
[1748044194339,0.0090391,107070.0,107060.0,2.22710752]
[1748044194550,0.02771715,107070.0,107060.0,2.23594608]
[1748044194754,0.01837799,107070.0,107060.0,2.23594608]
[1748044195002,0.04939571,107070.0,107060.0,2.23694608]
[1748044195208,0.23618931,107070.0,107060.0,2.20892565]
[1748044195415,0.22685094,107070.0,107060.0,2.22760631]
[1748044195621,0.2175117,107070.0,107060.0,1.26005397]
[1748044195822,0.2175117,107070.0,107060.0,2.21818594]
[1748044196285,0.22773278,107070.0,107060.0,1.64858656]
[1748044196501,0.19583278,107070.0,107060.0,1.64858656]
[1748044196707,0.22753278,107070.0,107060.0,0.89694656]
[1748044196913,0.22753278,107070.0,107060.0,1.37748356]
[1748044197120,0.22753278,107070.0,107060.0,1.37648356]
[1748044197351,0.42381943,107070.0,107060.0,0.00883856]
[1748044197571,0.42381943,107070.0,107030.0,0.41820032]
[1748044197572,0.0280282,107030.0,107020.0,0.45271612]
[1748044197779,0.2242346,107030.0,107020.0,3.29335573]
[1748044197988,0.21489222,107030.0,107020.0,1.05313577]
[1748044198198,0.01868556,107030.0,107020.0,1.6080478]
[1748044198401,0.02802856,107030.0,107020.0,1.25870437]
[1748044198605,0.22423522,107030.0,107020.0,1.60804798]
[1748044198814,0.20554966,107030.0,107020.0,1.32386386]
[1748044199021,0.20554966,107030.0,107020.0,1.29186882]
[1748044199240,0.00934212,107040.0,107030.0,0.35868538]
[1748044199463,0.0093409,107050.0,107040.0,0.54553036]
[1748044199674,0.26051046,107090.0,107070.0,0.34]
[1748044199895,0.26051046,107090.0,107070.0,1.955234]
[1748044199896,0.21139846,107080.0,107070.0,1.955234]
[1748044200170,0.02462201,107080.0,107070.0,2.17004567]
[1748044200382,0.04329901,107080.0,107070.0,2.17004567]
[1748044200604,0.02462201,107080.0,107070.0,2.27413208]
[1748044200824,0.027998,107130.0,107120.0,0.01454085]
[1748044201042,0.02799402,107160.0,107150.0,0.34]
[1748044201256,0.20530021,107160.0,107150.0,1.092395]
[1748044201467,0.20545236,107160.0,107150.0,1.092395]
[1748044201681,0.00015215,107160.0,107150.0,1.3070463]
[1748044202741,0.00015215,107160.0,107150.0,1.32158715]
[1748044202946,0.00948329,107160.0,107150.0,1.32158715]
[1748044203195,0.02814635,107160.0,107150.0,1.03233505]
[1748044203429,0.01881469,107160.0,107150.0,1.33087933]
[1748044203695,0.21978315,107160.0,107150.0,1.03233505]
[1748044203940,0.21045201,107160.0,107150.0,1.07160485]
[1748044204354,0.21045201,107160.0,107150.0,1.06639671]
[1748044204557,0.0144832,107160.0,107150.0,1.28104783]
[1748044204763,0.02381434,107160.0,107150.0,1.28104783]
[1748044204968,0.02381451,107160.0,107150.0,1.28104783]
[1748044205196,0.02381451,107160.0,107150.0,1.29038001]
[1748044205197,0.04239083,107160.0,107150.0,1.29038001]
[1748044205404,0.03739083,107160.0,107150.0,1.29038001]
[1748044205617,0.02805926,107160.0,107150.0,1.28104791]
[1748044205821,0.02072786,107160.0,107150.0,1.29038001]
[1748044206233,0.02072786,107160.0,107150.0,2.16574001]
[1748044206445,0.03005935,107160.0,107150.0,2.16574001]
[1748044206863,0.20736545,107160.0,107150.0,1.809232]
[1748044207086,0.23736545,107160.0,107150.0,1.15508]
[1748044207501,0.23736545,107160.0,107150.0,1.49508]
[1748044208008,0.23736545,107160.0,107150.0,1.15508]
[1748044208217,0.23736545,107160.0,107150.0,1.49508]
[1748044208634,0.23136545,107160.0,107150.0,1.49508]
[1748044209047,0.23136502,107160.0,107150.0,3.10648571]
[1748044209270,0.1959504,107170.0,107160.0,0.00933166]
[1748044209478,0.2352811,107170.0,107160.0,1.09212]
[1748044209907,0.2352811,107170.0,107160.0,2.0976628]
[1748044210121,0.2352811,107170.0,107160.0,1.66185946]
[1748044210327,0.2352811,107170.0,107160.0,1.67119103]
[1748044210543,0.2392811,107170.0,107160.0,1.66185946]
[1748044210762,0.2392811,107170.0,107160.0,1.68052234]
[1748044210970,0.02266166,107170.0,107160.0,1.68052234]
[1748044211173,0.02266166,107170.0,107160.0,1.77939913]
[1748044211174,0.004,107170.0,107160.0,1.77939913]
[1748044211633,0.004,107170.0,107160.0,2.18293594]
[1748044211876,0.004,107170.0,107160.0,2.23987679]
[1748044212134,0.0160754,107190.0,107180.0,0.56913206]
[1748044212387,0.0160754,107190.0,107180.0,5.73864643]
[1748044212644,2.0,107200.0,107190.0,0.57911204]
[1748044212866,6e-05,107230.0,107220.0,0.55451116]
[1748044213080,0.00021206,107230.0,107220.0,6.19560872]
[1748044213290,0.00021206,107230.0,107220.0,6.21014957]
[1748044214179,0.20537824,107230.0,107220.0,5.22905756]
[1748044214399,0.26867824,107230.0,107220.0,1.49464]
[1748044214834,0.3582238,107230.0,107220.0,0.40276]
[1748044215114,0.2042424,107190.0,107180.0,0.41142884]
[1748044215356,0.2348424,107190.0,107180.0,1.30488184]
[1748044215647,0.2348424,107190.0,107180.0,1.636093]
[1748044215878,0.2348424,107190.0,107180.0,1.2685]
[1748044216371,0.22651335,107190.0,107180.0,1.6085]
[1748044216604,0.2358424,107190.0,107180.0,1.309467]
[1748044216807,0.2358424,107190.0,107180.0,1.649467]
[1748044217031,0.2358424,107190.0,107180.0,1.649387]
[1748044217452,0.32538796,107190.0,107180.0,0.74264]
[1748044217672,0.35808796,107190.0,107180.0,1.5084]
[1748044218071,0.35808796,107190.0,107180.0,1.1684]
[1748044218313,0.35808796,107190.0,107180.0,0.40264]
[1748044218554,0.36208796,107190.0,107180.0,1.1684]
[1748044219062,0.34808796,107190.0,107180.0,1.1684]
[1748044219284,0.36241675,107190.0,107180.0,0.40264]
[1748044221204,0.24017119,107190.0,107180.0,0.74264]
[1748044221421,0.24017119,107190.0,107180.0,0.912129]
[1748044221645,0.24017119,107190.0,107180.0,0.74264]
[1748044221851,0.27287119,107190.0,107180.0,0.74264]
[1748044222686,0.36241675,107190.0,107180.0,1.50836]
[1748044222946,0.36241675,107190.0,107180.0,1.16836]
[1748044224244,0.35641675,107190.0,107180.0,1.16836]
[1748044224443,0.35641675,107190.0,107180.0,0.40264]
[1748044224661,0.35641675,107190.0,107180.0,1.16836]
[1748044225090,0.23417119,107190.0,107180.0,1.16836]
[1748044225296,0.23417119,107190.0,107180.0,1.998722]
[1748044225509,0.23417119,107190.0,107180.0,1.62116]
[1748044225935,0.23417119,107190.0,107180.0,1.50836]
[1748044226363,0.23417119,107190.0,107180.0,2.094653]
[1748044226798,0.04492879,107190.0,107180.0,2.094653]
[1748044227049,0.005,107190.0,107180.0,2.30924421]
[1748044227304,0.005,107190.0,107180.0,2.39878977]
[1748044227510,0.005,107190.0,107180.0,2.46547093]
[1748044227934,0.00131168,107190.0,107180.0,2.50443293]
[1748044228158,0.01871044,107230.0,107220.0,0.55451116]
[1748044228360,0.00021206,107230.0,107220.0,5.71694316]
[1748044228804,0.01886242,107230.0,107220.0,5.80648872]
[1748044229011,0.0281879,107230.0,107220.0,5.05118872]
[1748044229227,0.00953719,107230.0,107220.0,5.05118872]
[1748044229445,0.01053711,107230.0,107220.0,5.06002903]
[1748044229658,0.01986233,107230.0,107220.0,5.06002903]
[1748044229881,0.01986294,107230.0,107220.0,1.93014303]
[1748044230106,0.01986242,107230.0,107220.0,1.93014312]
[1748044230353,0.0291879,107230.0,107220.0,1.93946912]
[1748044230624,0.00121206,107230.0,107220.0,1.98730997]
[1748044231311,0.21470295,107230.0,107220.0,0.94995187]
[1748044231530,0.2385779,107230.0,107220.0,0.00884031]
[1748044231755,0.2385779,107230.0,107220.0,0.80204684]
[1748044231973,0.23836584,107230.0,107220.0,0.99790555]
[1748044232174,0.23683951,107230.0,107220.0,1.62374831]
[1748044232389,0.18649962,107240.0,107230.0,0.53584062]
[1748044232390,0.19582236,107240.0,107230.0,0.53584062]
[1748044232609,0.20565338,107240.0,107230.0,2.14751202]
[1748044232820,0.19632885,107240.0,107230.0,0.74248]
[1748044233028,0.22952885,107240.0,107230.0,0.74248]
[1748044233238,0.21952885,107240.0,107230.0,1.115436]
[1748044233460,0.21952885,107240.0,107230.0,0.850929]
[1748044233699,0.21952885,107240.0,107230.0,1.630809]
[1748044233916,0.21952885,107240.0,107230.0,1.642039]
[1748044234127,0.21952885,107240.0,107230.0,1.66597331]
[1748044234333,0.21952885,107240.0,107230.0,1.67713331]
[1748044234544,0.33917441,107240.0,107230.0,0.41232031]
[1748044234795,0.33917441,107240.0,107230.0,1.19208031]
[1748044235035,0.20518498,107220.0,107210.0,0.03476922]
[1748044235246,0.35803054,107220.0,107210.0,0.53504922]
[1748044235463,0.35803054,107220.0,107210.0,0.02]
[1748044236351,0.37257139,107220.0,107210.0,0.29948]
[1748044237203,0.37257139,107220.0,107210.0,0.02]
[1748044237406,0.26922326,107200.0,107190.0,1.18224]
[1748044237624,0.26922326,107200.0,107180.0,0.001]
[1748044237625,0.21045446,107190.0,107180.0,0.001]
[1748044237842,0.36400002,107190.0,107180.0,0.001]
[1748044238267,0.34945917,107190.0,107180.0,0.001]
[1748044238706,0.34945917,107190.0,107180.0,0.00115206]
[1748044238951,0.35245917,107190.0,107180.0,0.28063206]
[1748044239582,0.32035917,107190.0,107180.0,0.28063206]
[1748044239793,0.31103012,107190.0,107180.0,0.28063206]
[1748044239994,0.32035917,107190.0,107180.0,0.28063206]
[1748044240228,0.19891361,107190.0,107180.0,1.12780606]
[1748044240444,0.22689972,107190.0,107180.0,1.33306779]
[1748044240660,0.003,107190.0,107180.0,1.43194283]
[1748044241092,0.003,107190.0,107180.0,1.51296052]
[1748044241312,0.003,107190.0,107180.0,1.61296052]
[1748044241974,0.03730828,107210.0,107200.0,0.21455118]
[1748044242187,0.03730828,107210.0,107200.0,3.83106918]
[1748044242432,0.03730828,107210.0,107200.0,3.81844918]
[1748044242643,0.20520438,107210.0,107200.0,1.644754]
[1748044242881,0.20520438,107210.0,107200.0,1.52236]
[1748044243741,0.20520438,107210.0,107200.0,2.50635016]
[1748044243954,0.0373088,107210.0,107200.0,2.53433443]
[1748044244610,0.2145316,107210.0,107200.0,2.13147261]
[1748044244837,0.20520412,107210.0,107200.0,2.13147261]
[1748044245048,0.2145316,107210.0,107200.0,2.14080053]
[1748044245253,0.20520446,107210.0,107200.0,1.83117251]
[1748044245482,0.19587724,107210.0,107200.0,1.64460527]
[1748044245897,0.19587724,107210.0,107200.0,1.84982835]
[1748044246118,0.20520446,107210.0,107200.0,1.83117243]
[1748044246319,0.20520446,107210.0,107200.0,1.84050061]
[1748044246587,0.20618463,107220.0,107210.0,0.2052043]
[1748044246801,0.21551107,107220.0,107210.0,0.8614533]
[1748044247006,0.20618498,107220.0,107210.0,0.86145347]
[1748044247204,0.1968588,107220.0,107210.0,0.86145347]
[1748044247424,0.18753236,107220.0,107210.0,0.182022]
[1748044247635,0.20520429,107210.0,107200.0,1.43140716]
[1748044247846,0.20520429,107210.0,107200.0,2.20365471]
[1748044248052,0.20520429,107210.0,107200.0,2.20909862]
[1748044248454,0.20520429,107210.0,107200.0,2.21842654]
[1748044248746,0.01865366,107210.0,107200.0,2.23509943]
[1748044248997,0.01865366,107210.0,107200.0,2.21644438]
[1748044249231,0.21453134,107210.0,107200.0,2.0298773]
[1748044249443,0.20520438,107210.0,107200.0,1.24958225]
[1748044249658,0.20520438,107210.0,107200.0,1.41482425]
[1748044249863,0.20520438,107210.0,107200.0,1.66830231]